fUST/lending_fUST_20260424
["ID","MTS","AMOUNT","RATE_DAILY","PERIOD"]
[421092921,1777020042210,-500.0,0.00011481,2]
[421092922,1777020042507,-83.72000261,0.00011481,2]
[421092923,1777020049141,-5000.0,0.00011366,2]
[421092924,1777020049162,-424.87299955,0.00011481,2]
[421092925,1777020049185,-500.0,0.00011481,2]
[421092926,1777020049209,-500.0,0.00011481,2]
[421092927,1777020049235,-500.0,0.00011481,2]
[421092928,1777020049259,-500.0,0.00011481,2]
[421092929,1777020049283,-128.12700045,0.00011481,2]
[421092930,1777020113905,-1187.30518853,0.00011251,2]
[421092931,1777020113928,-578.0,0.00011251,2]
[421092932,1777020113952,-5000.0,0.00011365,2]
[421092933,1777020113974,-300.0,0.0001148,2]
[421092934,1777020113998,-371.87299955,0.00011481,2]
[421092935,1777020114020,-500.0,0.00011481,2]
[421092936,1777020114043,-500.0,0.00011481,2]
[421092937,1777020114066,-445.1493573,0.00011481,2]
[421092938,1777020114088,-500.0,0.00011481,2]
[421092939,1777020114111,-500.0,0.00011481,2]
[421092940,1777020114133,-117.67245462,0.00011481,2]
[421092941,1777020115787,-382.32754538,0.00011481,2]
[421092942,1777020115814,-500.0,0.00011481,2]
[421092943,1777020115839,-500.0,0.00011481,2]
[421092944,1777020116176,-490.02226525,0.00011481,2]
[421092945,1777020116200,-500.0,0.00011481,2]
[421092946,1777020116224,-500.0,0.00011481,2]
[421092947,1777020116247,-500.0,0.00011481,2]
[421092948,1777020116271,-500.0,0.00011481,2]
[421092949,1777020116293,-500.0,0.00011481,2]
[421092950,1777020116317,-500.0,0.00011481,2]
[421092951,1777020116340,-500.0,0.00011481,2]
[421092952,1777020116363,-500.0,0.00011481,2]
[421092953,1777020116384,-500.0,0.00011481,2]
[421092954,1777020116407,-500.0,0.00011481,2]
[421092955,1777020116429,-500.0,0.00011481,2]
[421092956,1777020116454,-500.0,0.00011481,2]
[421092957,1777020116476,-500.0,0.00011481,2]
[421092958,1777020116498,-500.0,0.00011481,2]
[421092959,1777020116522,-500.0,0.00011481,2]
[421092960,1777020116544,-500.0,0.00011481,2]
[421092961,1777020116568,-127.65018937,0.00011481,2]
[421092962,1777020122654,-300.0,0.0001148,2]
[421092963,1777020122675,-300.0,0.0001148,2]
[421092964,1777020122697,-372.34981063,0.00011481,2]
[421092965,1777020122718,-500.0,0.00011481,2]
[421092966,1777020122742,-500.0,0.00011481,2]
[421092967,1777020122764,-385.65018937,0.00011481,2]
[421092968,1777020181046,-5000.0,0.00011366,2]
[421092969,1777020181070,-500.0,0.0001148,2]
[421092970,1777020181094,-500.0,0.0001148,2]
[421092971,1777020181116,-500.0,0.0001148,2]
[421092972,1777020181140,-500.0,0.0001148,2]
[421092973,1777020181164,-500.0,0.0001148,2]
[421092974,1777020181187,-500.0,0.0001148,2]
[421092975,1777020181212,-500.0,0.0001148,2]
[421092976,1777020181232,-500.0,0.0001148,2]
[421092977,1777020181255,-500.0,0.0001148,2]
[421092978,1777020181275,-500.0,0.0001148,2]
[421092979,1777020182398,-300.0,0.00011479,2]
[421092980,1777020182419,-618.18237112,0.0001148,2]
[421092981,1777020182442,-500.0,0.0001148,2]
[421092982,1777020182464,-500.0,0.0001148,2]
[421092983,1777020182489,-500.0,0.0001148,2]
[421092984,1777020182511,-500.0,0.0001148,2]
[421092985,1777020182533,-500.0,0.0001148,2]
[421092986,1777020182555,-500.0,0.0001148,2]
[421092987,1777020182579,-500.0,0.0001148,2]
[421092988,1777020182599,-599.00222652,0.0001148,2]
[421092989,1777020182621,-500.0,0.0001148,2]
[421092990,1777020182643,-500.0,0.0001148,2]
[421092991,1777020182664,-500.0,0.0001148,2]
[421092992,1777020182979,-500.0,0.0001148,2]
[421092993,1777020183004,-500.0,0.0001148,2]
[421092994,1777020183027,-288.42041987,0.0001148,2]
[421092995,1777020183050,-221.73210983,0.0001148,2]
[421092996,1777020183077,-500.0,0.0001148,2]
[421092997,1777020183102,-500.0,0.0001148,2]
[421092998,1777020183129,-500.0,0.0001148,2]
[421092999,1777020183151,-472.66287266,0.0001148,2]
[421093000,1777020183826,-581.0,0.0001148,2]
[421093001,1777020183855,-27.33712734,0.0001148,2]
[421093002,1777020183878,-500.0,0.0001148,2]
[421093003,1777020183903,-500.0,0.0001148,2]
[421093004,1777020183926,-500.0,0.0001148,2]
[421093005,1777020183949,-500.0,0.0001148,2]
[421093006,1777020183975,-500.0,0.0001148,2]
[421093007,1777020183998,-500.0,0.0001148,2]
[421093008,1777020184022,-500.0,0.0001148,2]
[421093009,1777020184044,-500.0,0.0001148,2]
[421093010,1777020184067,-500.0,0.0001148,2]
[421093011,1777020184090,-500.0,0.0001148,2]
[421093012,1777020184112,-200.0,0.0001148,2]
[421093013,1777020184138,-500.0,0.0001148,2]
[421093014,1777020184162,-500.0,0.0001148,2]
[421093015,1777020184187,-500.0,0.0001148,2]
[421093016,1777020184210,-500.0,0.0001148,2]
[421093017,1777020184235,-500.0,0.0001148,2]
[421093018,1777020184258,-500.0,0.0001148,2]
[421093019,1777020184280,-500.0,0.0001148,2]
[421093020,1777020184304,-500.0,0.0001148,2]
[421093021,1777020184328,-191.66287266,0.0001148,2]
[421093022,1777020185366,-308.33712734,0.0001148,2]
[421093023,1777020185391,-500.0,0.0001148,2]
[421093024,1777020185415,-500.0,0.0001148,2]
[421093025,1777020185440,-500.0,0.0001148,2]
[421093026,1777020185462,-500.0,0.0001148,2]
[421093027,1777020185487,-500.0,0.0001148,2]
[421093028,1777020185509,-500.0,0.0001148,2]
[421093029,1777020185534,-500.0,0.0001148,2]
[421093030,1777020185557,-500.0,0.0001148,2]
[421093031,1777020185582,-500.0,0.0001148,2]
[421093032,1777020185606,-500.0,0.0001148,2]
[421093033,1777020185630,-500.0,0.0001148,2]
[421093034,1777020185654,-500.0,0.0001148,2]
[421093035,1777020185678,-500.0,0.0001148,2]
[421093036,1777020185704,-500.0,0.0001148,2]
[421093037,1777020185727,-500.0,0.0001148,2]
[421093038,1777020185753,-422.4479902,0.0001148,2]
[421093039,1777020185778,-500.0,0.0001148,2]
[421093040,1777020185801,-500.0,0.0001148,2]
[421093041,1777020185825,-500.0,0.0001148,2]
[421093042,1777020185848,-269.21488246,0.0001148,2]
[421093043,1777020186961,-230.78511754,0.0001148,2]
[421093044,1777020186988,-500.0,0.0001148,2]
[421093045,1777020187013,-500.0,0.0001148,2]
[421093046,1777020187040,-500.0,0.0001148,2]
[421093047,1777020187067,-500.0,0.0001148,2]
[421093048,1777020187091,-500.0,0.0001148,2]
[421093049,1777020187118,-500.0,0.0001148,2]
[421093050,1777020187144,-500.0,0.0001148,2]
[421093051,1777020187257,-500.0,0.0001148,2]
[421093052,1777020187284,-500.0,0.0001148,2]
[421093053,1777020187311,-500.0,0.0001148,2]
[421093054,1777020187338,-500.0,0.0001148,2]
[421093055,1777020187363,-500.0,0.0001148,2]
[421093056,1777020187386,-500.0,0.0001148,2]
[421093057,1777020187412,-500.0,0.0001148,2]
[421093058,1777020187436,-500.0,0.0001148,2]
[421093059,1777020187461,-500.0,0.0001148,2]
[421093060,1777020187485,-500.0,0.0001148,2]
[421093061,1777020187511,-500.0,0.0001148,2]
[421093062,1777020187536,-500.0,0.0001148,2]
[421093063,1777020187561,-269.21488246,0.0001148,2]
[421093064,1777020188658,-230.78511754,0.0001148,2]
[421093065,1777020188683,-500.0,0.0001148,2]
[421093066,1777020188709,-500.0,0.0001148,2]
[421093067,1777020188734,-500.0,0.0001148,2]
[421093068,1777020188758,-500.0,0.0001148,2]
[421093069,1777020188780,-198.71337998,0.0001148,2]
[421093070,1777020188806,-500.0,0.0001148,2]
[421093071,1777020188830,-500.0,0.0001148,2]
[421093072,1777020188854,-500.0,0.0001148,2]
[421093073,1777020188878,-500.0,0.0001148,2]
[421093074,1777020188905,-500.0,0.0001148,2]
[421093075,1777020188929,-500.0,0.0001148,2]
[421093076,1777020188952,-519.3555223,0.0001148,2]
[421093077,1777020188975,-500.0,0.0001148,2]
[421093078,1777020189002,-500.0,0.0001148,2]
[421093079,1777020189025,-500.0,0.0001148,2]
[421093080,1777020189050,-500.0,0.0001148,2]
[421093081,1777020189075,-500.0,0.0001148,2]
[421093082,1777020189100,-500.0,0.0001148,2]
[421093083,1777020189124,-500.0,0.0001148,2]
[421093084,1777020189150,-500.0,0.0001148,2]
[421093085,1777020189174,-51.14598018,0.0001148,2]
[421093086,1777020190257,-448.85401982,0.0001148,2]
[421093087,1777020190282,-500.0,0.0001148,2]
[421093088,1777020190311,-500.0,0.0001148,2]
[421093089,1777020190338,-500.0,0.0001148,2]
[421093090,1777020190364,-500.0,0.0001148,2]
[421093091,1777020190390,-500.0,0.0001148,2]
[421093092,1777020190413,-500.0,0.0001148,2]
[421093093,1777020190438,-500.0,0.0001148,2]
[421093094,1777020190461,-500.0,0.0001148,2]
[421093095,1777020190485,-500.0,0.0001148,2]
[421093096,1777020190509,-500.0,0.0001148,2]
[421093097,1777020190534,-500.0,0.0001148,2]
[421093098,1777020190559,-500.0,0.0001148,2]
[421093099,1777020190583,-500.0,0.0001148,2]
[421093100,1777020190606,-500.0,0.0001148,2]
[421093101,1777020190629,-500.0,0.0001148,2]
[421093102,1777020190651,-500.0,0.0001148,2]
[421093103,1777020190675,-500.0,0.0001148,2]
[421093104,1777020190698,-625.94290608,0.0001148,2]
[421093105,1777020190722,-425.2030741,0.0001148,2]
[421093106,1777020191795,-74.7969259,0.0001148,2]
[421093107,1777020191820,-500.0,0.0001148,2]
[421093108,1777020191846,-500.0,0.0001148,2]
[421093109,1777020191871,-500.0,0.0001148,2]
[421093110,1777020191898,-500.0,0.0001148,2]
[421093111,1777020191922,-164.15535011,0.0001148,2]
[421093112,1777020191947,-250.3418841,0.00011481,2]
[421093113,1777020191970,-7510.70583989,0.00011481,2]
[421093114,1777020193210,-10000.0,0.00011481,2]
[421093115,1777020194762,-10000.0,0.00011481,2]
[421093116,1777020196614,-10000.0,0.00011481,2]
[421093117,1777020197906,-10000.0,0.00011481,2]
[421093118,1777020199206,-5000.0,0.00011366,2]
[421093119,1777020199230,-168.81728025,0.0001148,2]
[421093120,1777020199254,-2489.29416011,0.00011481,2]
[421093121,1777020199276,-366.27235186,0.000116,2]
[421093122,1777020199299,-1775.98105706,0.000116,2]
[421093123,1777020199322,-199.63515072,0.000117,2]
[421093124,1777020200868,-1800.36484928,0.000117,2]
[421093125,1777020200893,-2000.0,0.000117,2]
[421093126,1777020200916,-159.97409204,0.000118,2]
[421093127,1777020200938,-2000.0,0.000118,2]
[421093128,1777020200960,-2000.0,0.000119,2]
[421093129,1777020200982,-2000.0,0.000119,2]
[421093130,1777020201004,-39.66105868,0.000119,2]
[421093131,1777020203231,-1960.33894132,0.000119,2]
[421093132,1777020203256,-1634.60577649,0.000119,2]
[421093133,1777020203281,-621.00541154,0.00012,2]
[421093134,1777020221682,5000.0,0.00012,2]
[421093135,1777020223904,200.23276079,0.00011,2]
[421093136,1777020229365,583.81710986,0.00012,2]
[421093137,1777020229389,4416.18289014,0.00012,2]
[421093138,1777020244185,5000.0,0.00012,2]
[421093139,1777020252259,583.81710986,0.00012,2]
[421093140,1777020252284,2092.94734764,0.00012,2]
[421093141,1777020267619,5000.0,0.00012,2]
[421093142,1777020267902,-300.0,0.00012136,2]
[421093143,1777020267932,-591.0,0.00012136,2]
[421093144,1777020267957,-1200.0,0.00012136,2]
[421093145,1777020267981,-7909.0,0.00012137,2]
[421093146,1777020272281,-10000.0,0.00012137,2]
[421093147,1777020276473,-2907.05265236,0.00012137,2]
[421093148,1777020310224,-235.57886531,0.0001148,2]
[421093149,1777020310256,-5000.0,0.00012016,2]
[421093150,1777020310284,-300.0,0.00012136,2]
[421093151,1777020310312,-162.42113469,0.00012136,2]
[421093166,1777020638875,-1200.0,0.0001125,2]
[421093167,1777020638885,-300.0,0.0001125,2]
[421093168,1777020638895,-300.0,0.0001125,2]
[421093169,1777020638904,-300.0,0.0001125,2]
[421093170,1777020638915,-300.0,0.0001125,2]
[421093171,1777020638926,-578.0,0.0001125,2]
[421093172,1777020638939,-5000.0,0.00011251,2]
[421093173,1777020638949,-265.69500444,0.00011365,2]
[421093174,1777020638959,-300.0,0.00011689,2]
[421093175,1777020638969,-7660.2685823,0.0001169,2]
[421093176,1777020638979,-1182.1658525,0.0001169,2]
[421093177,1777020638988,-152.0,0.00012033,7]
[421093178,1777020638998,-152.0,0.00012033,7]
[421093179,1777020639009,-500.0,0.00012135,2]
[421093180,1777020639019,-246.85912331,0.00012135,2]
[421093181,1777020639029,-500.0,0.00012135,2]
[421093182,1777020639039,-455.44469184,0.00012135,2]
[421093183,1777020639050,-500.0,0.00012135,2]
[421093184,1777020639371,-500.0,0.00012135,2]
[421093185,1777020639381,-500.0,0.00012135,2]
[421093186,1777020639391,-500.0,0.00012135,2]
[421093187,1777020639401,-500.0,0.00012135,2]
[421093188,1777020639411,-500.0,0.00012135,2]
[421093189,1777020639421,-500.0,0.00012135,2]
[421093190,1777020639431,-500.0,0.00012135,2]
[421093191,1777020639440,-442.24479902,0.00012135,2]
[421093192,1777020639450,-500.0,0.00012135,2]
[421093193,1777020639460,-582.59429061,0.00012135,2]
[421093194,1777020639471,-300.0,0.00012137,2]
[421093195,1777020639480,-300.0,0.00012137,2]
[421093196,1777020639490,-300.0,0.00012137,2]
[421093197,1777020639500,-300.0,0.00012137,2]
[421093198,1777020639510,-300.0,0.00012137,2]
[421093199,1777020639519,-300.0,0.00012137,2]
[421093200,1777020639529,-300.0,0.00012137,2]
[421093201,1777020639539,-300.0,0.00012137,2]
[421093202,1777020639548,-300.0,0.00012137,2]
[421093203,1777020639559,-300.0,0.00012137,2]
[421093204,1777020639568,-300.0,0.00012137,2]
[421093205,1777020639578,-300.0,0.00012137,2]
[421093206,1777020639589,-300.0,0.00012137,2]
[421093207,1777020639599,-300.0,0.00012137,2]
[421093208,1777020639611,-300.0,0.00012137,2]
[421093209,1777020639621,-152.0,0.00012139,7]
[421093210,1777020639631,-152.0,0.00012139,7]
[421093211,1777020639640,-218.89,0.000122,2]
[421093212,1777020639650,-420.0,0.00012359,2]
[421093213,1777020639659,-420.0,0.00012359,2]
[421093214,1777020639669,-420.0,0.00012359,2]
[421093215,1777020639678,-1680.0,0.00012375,2]
[421093216,1777020639687,-516.60023906,0.00012551,2]
[421093217,1777020639697,-327.9429137,0.00013233,14]
[421093218,1777020639707,-1182.1658525,0.0001325,2]
[421093219,1777020639717,-313.52010524,0.00013365,2]
[421093220,1777020639729,-587.0,0.00013578,2]
[421093221,1777020639739,-587.0,0.00013578,2]
[421093222,1777020639749,-2351.0,0.00013613,2]
[421093223,1777020639760,-1000.0,0.00013699,2]
[421093224,1777020639769,-1709.2369555,0.00014354,2]
[421093225,1777020639780,-223.1,0.00014553,2]
[421093226,1777020639790,-152.0,0.00014751,7]
[421093227,1777020639800,-1182.1658525,0.00014811,2]
[421093228,1777020639810,-267.72,0.00014876,2]
[421093229,1777020639821,-495.0,0.00014917,2]
[421093230,1777020639831,-823.0,0.00014917,2]
[421093231,1777020639841,-381.3823156,0.00014949,2]
[421093232,1777020639850,-3292.0,0.00014974,2]
[421093233,1777020639860,-312.34,0.00015199,2]
[421093234,1777020639871,-361.34520604,0.00015365,2]
[421093235,1777020639881,-2150.738,0.00015461,2]
[421093236,1777020639892,-166.17,0.00015522,2]
[421093237,1777020639906,-221.56,0.00015522,2]
[421093238,1777020639921,-624.69,0.00015522,2]
[421093239,1777020639941,-588.15380896,0.00015573,2]
[421093240,1777020639951,-12982.5389015,0.00015672,2]
[421093241,1777020639960,-274.6458681,0.00015672,2]
[421093242,1777020639971,-3130.6149653,0.00015797,2]
[421093243,1777020639981,-600.0,0.00015909,2]
[421093244,1777020639991,-531.606235,0.00016,2]
[421093245,1777020640001,-157.0,0.00016,2]
[421093246,1777020640012,-157.0,0.00016,2]
[421093247,1777020640022,-157.0,0.00016,2]
[421093248,1777020640033,-2230.315306,0.00016009,2]
[421093249,1777020640043,-149.9599,0.00016137,2]
[421093250,1777020640054,-464.90874507,0.00016152,2]
[421093251,1777020640063,-157.0,0.000162,2]
[421093252,1777020640073,-157.0,0.000162,2]
[421093253,1777020640083,-157.0,0.000162,3]
[421093254,1777020640092,-155.0,0.0001637,2]
[421093255,1777020640101,-352200.28773521,0.00016371,2]
[421093280,1777020643361,-0.134036,0.00016371,2]
[421093281,1777020643765,-3508.17735866,0.00016371,2]
[421093282,1777020646836,-7838.97440107,0.00016371,2]
[421093283,1777020647100,-3902.95098922,0.00016371,2]
[421093284,1777021242081,90339.91667933,7.6e-05,2]
[421093287,1777021262387,-4724.91751094,9.425e-05,2]
[421093288,1777021642177,160.29988189,4.006e-05,5]
[421093289,1777021650414,-300.0,9.053e-05,2]
[421093290,1777021650437,-1700.0,9.054e-05,2]
[421093291,1777021733001,300.0,8.485e-05,23]
[421093292,1777021754703,-2483.95692031,8.873e-05,2]
[421093293,1777021754728,-544.0,8.873e-05,2]
[421093294,1777021754753,-270.53168383,8.918e-05,2]
[421093295,1777021754775,-300.0,8.962e-05,2]
[421093296,1777021754798,-300.0,8.962e-05,2]
[421093297,1777021754821,-1101.51139586,8.963e-05,2]
[421093315,1777021831639,-393.6937,8.873e-05,2]
[421093356,1777021838129,-4606.3063,8.873e-05,2]
[421093357,1777021838138,-300.0,8.962e-05,2]
[421093358,1777021838148,-300.0,8.962e-05,2]
[421093359,1777021838157,-300.0,8.962e-05,2]
[421093360,1777021838167,-300.0,8.962e-05,2]
[421093361,1777021838177,-1200.0,8.962e-05,2]
[421093362,1777021838186,-3898.48860414,8.963e-05,2]
[421093363,1777021838196,-500.0,9.423e-05,2]
[421093364,1777021838206,-500.0,9.423e-05,2]
[421093365,1777021838216,-500.0,9.423e-05,2]
[421093366,1777021838225,-500.0,9.423e-05,2]
[421093367,1777021838235,-500.0,9.423e-05,2]
[421093368,1777021838244,-500.0,9.423e-05,2]
[421093369,1777021838253,-500.0,9.423e-05,2]
[421093370,1777021838263,-500.0,9.423e-05,2]
[421093371,1777021838272,-500.0,9.423e-05,2]
[421093372,1777021838281,-500.0,9.423e-05,2]
[421093373,1777021838291,-500.0,9.423e-05,2]
[421093374,1777021838299,-500.0,9.423e-05,2]
[421093375,1777021838308,-500.0,9.423e-05,2]
[421093376,1777021838318,-500.0,9.423e-05,2]
[421093377,1777021838327,-500.0,9.423e-05,2]
[421093378,1777021838336,-500.0,9.423e-05,2]
[421093379,1777021838345,-500.0,9.423e-05,2]
[421093380,1777021838355,-500.0,9.423e-05,2]
[421093381,1777021838364,-500.0,9.423e-05,2]
[421093382,1777021838373,-284.20007597,9.423e-05,2]
[421093383,1777021838382,-500.0,9.423e-05,2]
[421093384,1777021838391,-500.0,9.423e-05,2]
[421093385,1777021838405,-173.16669604,9.423e-05,2]
[421093386,1777021838414,-272.79009297,9.423e-05,2]
[421093387,1777021838424,-500.0,9.423e-05,2]
[421093388,1777021838433,-500.0,9.423e-05,2]
[421093389,1777021838442,-500.0,9.423e-05,2]
[421093390,1777021838451,-500.0,9.423e-05,2]
[421093391,1777021838461,-500.0,9.423e-05,2]
[421093392,1777021838471,-500.0,9.423e-05,2]
[421093393,1777021838481,-500.0,9.423e-05,2]
[421093394,1777021838490,-500.0,9.423e-05,2]
[421093395,1777021838500,-500.0,9.423e-05,2]
[421093396,1777021838510,-500.0,9.423e-05,2]
[421093397,1777021838519,-500.0,9.423e-05,2]
[421093398,1777021838528,-231.77295182,9.423e-05,2]
[421093399,1777021838538,-246.24203355,9.423e-05,2]
[421093400,1777021838551,-1437.21047514,9.423e-05,2]
[421093401,1777021838562,-16331.59144297,9.423e-05,2]
[421093402,1777021838572,-409.25674816,9.424e-05,2]
[421093403,1777021838581,-93156.99547699,9.425e-05,2]
[421093404,1777021838591,-300.0,9.612e-05,2]
[421093405,1777021838600,-300.0,9.612e-05,2]
[421093406,1777021838610,-300.0,9.612e-05,2]
[421093407,1777021838619,-300.0,9.612e-05,2]
[421093408,1777021838629,-300.0,9.612e-05,2]
[421093409,1777021838638,-300.0,9.612e-05,2]
[421093410,1777021838648,-300.0,9.612e-05,2]
[421093411,1777021838658,-300.0,9.612e-05,2]
[421093412,1777021838667,-300.0,9.612e-05,2]
[421093413,1777021838676,-300.0,9.612e-05,2]
[421093414,1777021838686,-300.0,9.612e-05,2]
[421093415,1777021838696,-300.0,9.612e-05,2]
[421093416,1777021838705,-300.0,9.612e-05,2]
[421093417,1777021838715,-300.0,9.612e-05,2]
[421093418,1777021838724,-300.0,9.612e-05,2]
[421093419,1777021838734,-600.0,9.612e-05,2]
[421093420,1777021838744,-209.0,9.858e-05,2]
[421093421,1777021838753,-420.0,9.858e-05,2]
[421093422,1777021838762,-420.0,9.858e-05,2]
[421093423,1777021838772,-1680.0,9.858e-05,2]
[421093424,1777021838781,-111844.09877033,0.0001,2]
[421093425,1777021838792,-364.32513738,0.0001,2]
[421093426,1777021838802,-4439.45003219,0.000101,2]
[421093427,1777021838812,-720.0,0.00010574,2]
[421093428,1777021838821,-488.0,0.00010844,2]
[421093429,1777021838830,-587.0,0.00010844,2]
[421093430,1777021838840,-2351.0,0.00010844,2]
[421093431,1777021838849,-319.22738692,0.00010918,2]
[421093432,1777021838858,-98199.13150264,0.00011,2]
[421093433,1777021838868,-12847.92472729,0.00011,2]
[421093434,1777021838878,-864.0,0.00011631,2]
[421093435,1777021838887,-587.06123548,0.000119,5]
[421093436,1777021838896,-823.0,0.00011928,2]
[421093437,1777021838906,-3292.0,0.00011928,2]
[421093438,1777021838915,-620.10040921,0.00012,2]
[421093439,1777021838925,-500.0,0.00012,2]
[421093440,1777021838935,-252.22185606,0.00012279,2]
[421093441,1777021838945,-1334.53178599,0.000125,2]
[421093442,1777021838955,-582.0,0.0001252,2]
[421093443,1777021838965,-582.0,0.0001252,2]
[421093444,1777021838974,-582.0,0.0001252,2]
[421093445,1777021838984,-582.0,0.0001252,2]
[421093446,1777021838993,-582.0,0.0001252,2]
[421093447,1777021839002,-582.0,0.0001252,2]
[421093448,1777021839012,-582.0,0.0001252,2]
[421093449,1777021839021,-582.0,0.0001252,2]
[421093450,1777021839031,-582.0,0.0001252,2]
[421093451,1777021839040,-582.0,0.0001252,2]
[421093452,1777021839050,-582.0,0.0001252,2]
[421093453,1777021839059,-582.0,0.0001252,2]
[421093454,1777021839069,-582.0,0.0001252,2]
[421093455,1777021839079,-582.0,0.0001252,2]
[421093456,1777021839089,-582.0,0.0001252,2]
[421093457,1777021839098,-582.0,0.0001252,2]
[421093458,1777021839107,-582.0,0.0001252,2]
[421093459,1777021839117,-582.0,0.0001252,2]
[421093460,1777021839126,-582.0,0.0001252,2]
[421093461,1777021839136,-582.0,0.0001252,2]
[421093462,1777021839146,-582.0,0.0001252,2]
[421093464,1777021839155,-582.0,0.0001252,2]
[421093465,1777021839164,-582.0,0.0001252,2]
[421093466,1777021839174,-586.94469991,0.0001252,2]
[421093467,1777021839183,-1000.0,0.00012794,2]
[421093468,1777021839194,-367.92309001,0.00012918,2]
[421093469,1777021839204,-500.0,0.00013,2]
[421093470,1777021839213,-1152.0,0.00013121,2]
[421093471,1777021839222,-2119.0,0.00013121,2]
[421093472,1777021839232,-862.23629,0.000135,2]
[421093473,1777021839243,-500.0,0.00013561,2]
[421093474,1777021839254,-500.0,0.00013561,2]
[421093475,1777021839263,-480.85882639,0.00013561,2]
[421093476,1777021839272,-157.848203,0.00013699,2]
[421093477,1777021839282,-157.848203,0.00013699,2]
[421093478,1777021839291,-157.848203,0.00013699,2]
[421093479,1777021839301,-157.848203,0.00013699,2]
[421093480,1777021839311,-1000.0,0.00013699,2]
[421093481,1777021839320,-500.0,0.00014,2]
[421093482,1777021839329,-152.0,0.00014049,7]
[421093483,1777021839338,-500.0,0.00014052,2]
[421093484,1777021839348,-500.0,0.00014052,2]
[421093485,1777021839357,-500.0,0.00014052,2]
[421093486,1777021839367,-535.89710033,0.00014052,2]
[421093487,1777021839376,-500.0,0.00014052,2]
[421093488,1777021839385,-500.0,0.00014052,2]
[421093489,1777021839395,-500.0,0.00014052,2]
[421093490,1777021839404,-500.0,0.00014052,2]
[421093491,1777021839413,-500.0,0.00014052,2]
[421093492,1777021839422,-500.0,0.00014052,2]
[421093493,1777021839432,-500.0,0.00014052,2]
[421093494,1777021839441,-500.0,0.00014052,2]
[421093495,1777021839451,-217.46872115,0.00014052,2]
[421093496,1777021839460,-152.0,0.00014063,7]
[421093497,1777021839469,-1000.0,0.00014074,2]
[421093498,1777021839478,-244.0,0.00014074,2]
[421093499,1777021839487,-152.0,0.00014104,7]
[421093500,1777021839496,-1613.0,0.00014433,2]
[421093501,1777021839505,-416.6187931,0.00014918,2]
[421093503,1777021839514,-2150.738,0.00014986,2]
[421093505,1777021839523,-500.0,0.00015,2]
[421093507,1777021839532,-1030.08692701,0.00015,2]
[421093509,1777021839541,-152.58697351,0.00015,2]
[421093511,1777021839550,-61535.8402952,0.00015,2]
[421093513,1777021839560,-157.848203,0.00015,2]
[421093514,1777021839569,-157.848203,0.00015,2]
[421093516,1777021839578,-157.848203,0.00015,2]
[421093517,1777021839587,-157.848203,0.00015,2]
[421093518,1777021839596,-1000.0,0.00015481,2]
[421093519,1777021839605,-492.0,0.00015481,2]
[421093520,1777021839615,-2230.315306,0.00015534,2]
[421093521,1777021839624,-4720.06419048,0.000158,2]
[421093522,1777021839633,-151.0,0.00015837,2]
[421093523,1777021839643,-151.0,0.00015837,2]
[421093524,1777021839653,-151.0,0.00015837,2]
[421093525,1777021839662,-151.3039668,0.00015837,2]